bitfinex/quotes_ETHUSD_20250801
["timestamp","ask_amount","ask_price","bid_price","bid_amount"]
[1754089431769,3.44185996,3458.0,3457.4,2.8923459]
[1754089432095,0.55,3457.1,3456.0,0.5401]
[1754089432266,4.979,3457.4,3457.1,2.8925386]
[1754089432471,4.979,3457.4,3456.2,3.0]
[1754089432472,4.979,3457.4,3457.0,2.89266134]
[1754089432667,2.89100896,3459.0,3457.7,2.89205851]
[1754089432880,2.89200519,3457.9,3457.2,2.89250892]
[1754089433189,4.979,3458.1,3458.0,2.89184499]
[1754089433489,0.9891,3458.1,3456.9,2.89271908]
[1754089433654,0.9891,3458.1,3456.7,0.5381]
[1754089433850,0.55,3457.7,3457.1,2.89257024]
[1754089434097,2.89219216,3457.6,3457.0,2.8926586]
[1754089434391,0.55,3457.0,3455.7,2.89368958]
[1754089434559,0.55,3457.0,3455.3,2.89407714]
[1754089434560,0.55,3457.0,3456.6,2.89297794]
[1754089434755,0.55,3457.0,3455.8,3.4317458]
[1754089434756,2.89302355,3456.6,3455.8,3.4317458]
[1754089434961,2.89338358,3456.2,3455.5,2.89390455]
[1754089435157,0.55,3456.4,3456.0,2.89545988]
[1754089435461,0.55,3456.4,3456.0,0.002]
[1754089435658,3.44343479,3456.1,3456.0,0.002]
[1754089436365,4.43253479,3456.1,3456.0,0.002]
[1754089436772,4.979,3456.3,3456.0,0.002]
[1754089437077,4.979,3456.3,3456.0,2.89544696]
[1754089437285,0.1448,3456.3,3456.0,0.002]
[1754089437593,4.979,3456.6,3456.5,2.89309995]
[1754089437800,0.5547,3457.2,3456.1,0.5381]
[1754089438095,0.1448,3456.9,3456.7,2.89293256]
[1754089438310,0.1448,3456.9,3456.4,0.1448]
[1754089438311,0.1448,3456.9,3456.6,2.89295475]
[1754089438458,4.979,3457.0,3456.0,0.002]
[1754089438459,2.89301625,3456.6,3456.0,0.002]
[1754089438659,0.1448,3456.3,3456.0,0.002]
[1754089438989,0.6948,3456.1,3456.0,0.002]
[1754089439457,0.88889713,3457.0,3456.1,2.89343479]
[1754089439654,1.03369713,3457.0,3456.3,2.89326736]
[1754089439906,1.03369713,3457.0,3456.5,0.1448]
[1754089440120,0.88889713,3457.0,3456.7,0.1448]
[1754089440585,0.88889713,3457.0,3456.9,2.89276519]
[1754089440921,0.88889713,3457.0,3456.8,2.89283105]
[1754089441219,0.88889713,3457.0,3456.9,2.89276519]
[1754089441731,0.55,3456.9,3456.7,0.1448]
[1754089442020,5.528,3456.9,3456.7,0.1448]
[1754089442185,5.528,3456.9,3456.5,2.89304916]
[1754089442392,5.528,3456.9,3456.4,3.03797358]
[1754089442393,5.6728,3456.9,3456.4,3.03797358]
[1754089442605,5.6728,3456.9,3456.5,2.89309615]
[1754089442804,0.88889713,3457.0,3456.6,2.89295215]
[1754089443004,0.88889713,3457.0,3456.9,2.89276519]
[1754089443221,0.88889713,3457.0,3456.9,0.1448]
[1754089443423,0.55,3456.9,3456.4,0.1448]
[1754089443621,0.55,3456.9,3456.0,0.002]
[1754089443622,2.89293665,3456.7,3456.3,0.1448]
[1754089443923,2.89293665,3456.7,3456.0,2.89545615]
[1754089443924,0.55,3456.3,3456.0,0.002]
[1754089444168,3.58823479,3456.1,3456.0,0.002]
[1754089444592,4.57733479,3456.1,3456.0,0.002]
[1754089444795,7.57733479,3456.1,3456.0,0.002]
[1754089444997,0.55,3455.4,3454.7,0.1448]
[1754089445230,3.0,3456.0,3454.1,2.89503803]
[1754089445231,0.55,3454.8,3454.1,2.89503803]
[1754089445548,0.55,3454.8,3452.7,9.8462494]
[1754089445549,2.89554305,3453.6,3453.1,1.407679]
[1754089445690,4.978,3453.7,3453.2,0.1448]
[1754089445877,4.978,3453.7,3452.4,2.89649078]
[1754089445878,0.1448,3453.5,3453.0,0.1448]
[1754089446083,0.1448,3453.5,3453.2,2.89581847]
[1754089446307,0.1448,3453.5,3453.2,2.8958647]
[1754089446613,0.1448,3453.5,3453.4,2.89569699]
[1754089446781,4.978,3454.0,3453.5,2.89554847]
[1754089447114,4.978,3454.0,3453.3,0.5381]
[1754089447115,4.978,3454.8,3454.3,2.89494253]
[1754089447314,5.1228,3454.8,3454.3,0.1448]
[1754089447680,5.6728,3454.8,3454.7,2.89460734]
[1754089447890,0.1448,3454.8,3454.3,0.1448]
[1754089448094,4.979,3454.7,3454.5,2.89476502]
[1754089448323,0.6948,3454.6,3454.5,2.89476502]
[1754089448595,0.6948,3454.6,3453.8,0.5381]
[1754089448596,0.55,3454.5,3453.5,0.1448]
[1754089448795,0.55,3454.2,3453.6,2.8955293]
[1754089449101,0.6948,3453.8,3453.3,0.1448]
[1754089449434,5.6738,3453.8,3453.5,2.89554026]
[1754089449641,6.6629,3453.8,3453.3,0.1448]
[1754089449933,0.55,3453.5,3453.1,0.1448]
[1754089450236,5.528,3453.5,3452.9,2.8960916]
[1754089450537,0.1448,3453.3,3452.9,2.89605597]
[1754089450744,0.68846593,3453.8,3453.3,2.89572325]
[1754089450898,0.55,3453.5,3453.1,0.1448]
[1754089451246,5.528,3453.5,3453.0,0.1448]
[1754089451410,0.6948,3453.3,3452.8,0.1448]
[1754089451731,0.5547,3453.2,3452.8,0.1448]
[1754089451931,0.1448,3453.0,3452.8,2.8961949]
[1754089452229,0.1448,3453.0,3452.7,2.89625559]
[1754089452596,0.1448,3453.0,3452.5,0.1448]
[1754089452832,4.978,3453.5,3453.0,2.89594983]
[1754089453133,0.1448,3453.5,3453.1,0.5381]
[1754089453301,5.528,3453.5,3453.4,2.89569699]
[1754089453694,4.978,3453.5,3453.1,0.1448]
[1754089453896,1.1047,3453.4,3453.1,0.1448]
[1754089454115,0.55,3453.4,3453.2,2.89584397]
[1754089454322,5.1238,3453.3,3452.8,0.1448]
[1754089454523,4.979,3453.3,3453.2,2.8958647]
[1754089454720,4.979,3453.3,3452.8,0.1448]
[1754089454721,1.5746,3453.3,3452.8,0.1448]
[1754089454897,5.1238,3453.4,3452.6,0.1448]
[1754089454898,0.55,3452.9,3452.6,0.1448]
[1754089455098,3.44628558,3452.7,3451.4,3.43287497]
[1754089455330,0.1448,3452.3,3451.8,0.1448]
[1754089455543,0.1448,3452.3,3452.1,2.89673405]
[1754089455747,0.1448,3452.3,3451.8,0.1448]
[1754089455911,4.979,3452.4,3452.3,2.89661964]
[1754089456110,4.979,3452.4,3452.0,2.89683923]
[1754089456335,4.979,3452.4,3452.0,2.89687137]
[1754089456336,5.1238,3452.4,3452.0,2.89687137]
[1754089456524,0.1448,3452.4,3452.3,2.89661964]
[1754089456739,6.954,3454.5,3452.5,2.89645184]
[1754089456740,0.1448,3453.1,3452.5,2.89645184]
[1754089456913,1.0246,3454.0,3453.6,2.89548942]
[1754089457113,5.1238,3453.9,3453.8,2.89536163]
[1754089457341,0.1448,3453.9,3453.5,2.89561314]
[1754089457512,2.89461039,3454.7,3453.5,2.89561314]
[1754089457513,1.0246,3454.9,3453.7,2.89544546]
[1754089457711,1.0246,3454.9,3453.6,0.5355]
[1754089457712,0.1448,3454.3,3454.2,2.89502634]
[1754089457931,4.979,3454.8,3454.7,2.89452947]
[1754089458126,4.979,3454.9,3454.6,2.8946305]
[1754089458451,0.1448,3455.0,3454.9,2.89443978]
[1754089458633,0.869581,3456.6,3455.1,3.0]
[1754089458808,2.89351851,3456.0,3455.9,0.1448]
[1754089459007,3.0,3456.4,3454.9,0.4616]
[1754089459235,1.09954584,3456.3,3454.7,0.5355]
[1754089459434,1.09954584,3456.3,3453.7,2.89537009]
[1754089459435,1.0246,3456.2,3454.0,0.5355]
[1754089459712,0.55,3455.3,3454.1,3.0]
[1754089459912,0.5511,3455.5,3453.9,0.5355]
[1754089460118,1.0246,3456.4,3455.9,2.89353588]
[1754089460328,0.1448,3456.1,3456.0,2.89351851]
[1754089460531,0.5511,3456.3,3456.2,2.89335107]
[1754089460852,0.5511,3457.2,3455.4,0.4616]
[1754089461059,5.86689713,3457.0,3456.9,2.89276519]
[1754089461228,0.88889713,3457.0,3456.9,2.89276519]
[1754089461553,0.88889713,3457.0,3456.8,0.1448]
[1754089461850,0.88889713,3457.0,3456.9,2.89276519]
[1754089462014,0.88889713,3457.0,3456.9,4.62771431]
[1754089462215,0.88889713,3457.0,3456.9,4.16611431]
[1754089462413,0.88889713,3457.0,3456.9,0.1448]
[1754089462656,0.88889713,3457.0,3456.9,3.03756519]
[1754089463340,7.0,3457.5,3457.4,2.89234685]
[1754089463542,7.0,3457.5,3457.4,4.00632638]
[1754089463819,7.0,3457.5,3457.4,3.03714685]
[1754089464328,0.55,3457.4,3456.4,0.9971]
[1754089464531,0.55,3457.4,3456.9,0.1448]
[1754089464750,3.44235466,3457.4,3456.9,0.1448]
[1754089464967,2.8924497,3457.3,3456.9,0.1448]
[1754089465267,3.44234929,3457.4,3456.9,0.1448]
[1754089465550,0.55,3457.2,3456.9,0.1448]
[1754089465723,3.44268151,3457.0,3456.9,0.1448]
[1754089466146,3.44268151,3457.0,3455.8,0.9971]
[1754089466147,0.55,3456.8,3455.8,0.5355]
[1754089466314,2.89299921,3456.7,3456.3,0.1448]
[1754089466518,0.55,3456.6,3456.3,0.1448]
[1754089466711,0.1448,3456.4,3455.9,0.1448]
[1754089466957,3.0378287,3456.6,3456.1,0.1448]
[1754089467254,0.1448,3456.6,3456.1,3.0381634]
[1754089467430,0.1448,3456.6,3456.1,0.1448]
[1754089467754,5.524,3456.7,3455.6,0.5355]
[1754089467942,0.5096627,3456.6,3455.3,0.4616]
[1754089468143,2.89328582,3456.3,3455.6,2.89378917]
[1754089468548,0.55,3456.5,3455.3,3.0]
[1754089468763,7.86741187,3456.2,3455.5,2.89392827]
[1754089468964,4.974,3456.2,3455.3,0.002]
[1754089469272,4.974,3456.2,3455.6,2.89378157]
[1754089469441,7.86737009,3456.2,3455.5,2.89390541]
[1754089469642,4.973,3456.1,3455.6,2.89385345]
[1754089470273,4.973,3456.1,3455.3,0.002]
[1754089470472,1.06076898,3456.0,3455.3,0.002]
[1754089470776,2.89402095,3455.4,3455.3,0.002]
[1754089471133,7.86696734,3455.5,3455.3,0.002]
[1754089471472,4.46862095,3455.4,3455.3,0.002]
[1754089472171,6.02774345,3455.4,3455.3,0.002]
[1754089472359,5.99156819,3455.4,3455.3,0.002]
[1754089472551,5.98960097,3455.4,3455.3,0.002]
[1754089475882,8.98960097,3455.4,3455.3,1e-08]
[1754089476079,1.0246,3456.1,3455.3,1e-08]
[1754089476304,2.89402095,3455.4,3455.3,1e-08]
[1754089476590,8.89062095,3455.4,3455.3,1e-08]
[1754089476893,0.55,3454.5,3453.5,2.89559825]
[1754089477046,0.55,3454.3,3454.0,2.89517413]
[1754089477234,0.4735,3454.9,3454.0,0.5355]
[1754089477439,0.55,3454.7,3453.4,0.9971]
[1754089477636,0.55,3454.5,3453.4,0.9971]
[1754089477934,0.55,3454.3,3453.5,0.9971]
[1754089478137,0.1448,3454.0,3453.5,0.1448]
[1754089478779,5.521,3454.3,3452.9,0.4616]
[1754089478780,4.971,3453.9,3452.9,0.4616]
[1754089478981,5.521,3453.8,3453.1,0.1448]
[1754089479138,4.971,3453.7,3453.3,3.04056224]
[1754089479334,0.1448,3453.8,3453.4,3.9971]
[1754089479668,4.971,3454.4,3454.3,2.89494253]
[1754089479862,0.1448,3454.9,3454.6,2.89469113]
[1754089480174,0.1448,3454.4,3453.9,0.1448]
[1754089480375,4.971,3454.3,3453.9,3.57557522]
[1754089480674,4.971,3454.3,3453.1,2.89587911]
[1754089480675,0.1448,3455.1,3454.8,2.89450981]
[1754089480887,0.1448,3455.1,3454.7,2.89457295]
[1754089480888,4.971,3455.0,3454.7,2.89457295]
[1754089481093,0.1448,3455.1,3454.7,0.5355]
[1754089481238,4.971,3455.3,3454.8,0.9971]
[1754089481444,4.971,3455.3,3455.0,2.89428565]
[1754089481755,4.971,3455.3,3455.1,2.89426423]
[1754089481953,4.971,3455.4,3455.1,0.5355]
[1754089482286,4.971,3455.4,3453.8,2.89533698]
[1754089482287,4.971,3455.4,3455.0,0.1448]
[1754089482773,4.971,3455.4,3454.7,0.1448]
[1754089482774,2.89437149,3455.0,3454.7,0.1448]
[1754089482940,0.1448,3455.1,3454.6,0.1448]
[1754089483142,3.03943321,3454.7,3454.2,0.1448]
[1754089483352,0.55,3454.5,3452.6,5.4316]
[1754089483578,2.89560163,3453.6,3452.9,2.89608299]
[1754089483792,4.97,3453.5,3453.1,2.89592118]
[1754089483956,4.97,3453.5,3452.7,0.5355]
[1754089484157,4.97,3453.5,3453.1,2.8959475]
[1754089484578,4.97,3453.5,3453.2,2.89586173]
[1754089484784,13.47230222,3454.6,3453.2,2.89586173]
[1754089484785,0.03619202,3453.8,3453.7,2.89544546]
[1754089485008,1.45857919,3455.7,3453.7,3.5221]
[1754089485142,4.97,3455.6,3454.0,3.0]
[1754089485344,1.90237919,3455.7,3454.2,3.0]
[1754089485565,0.90827919,3455.7,3454.5,3.0]
[1754089485765,0.90827919,3455.7,3455.6,2.89385345]
[1754089486692,0.90827919,3455.7,3455.2,0.5221]
[1754089486855,0.90827919,3455.7,3454.6,2.89463728]
[1754089486856,0.90827919,3455.7,3454.7,0.5221]
[1754089487059,4.969,3455.6,3454.7,1.70673195]
[1754089487270,5.00517316,3455.6,3454.8,2.89452356]
[1754089487471,7.86287518,3455.6,3454.9,2.89443978]
[1754089487648,5.5193,3455.6,3455.1,2.89419458]
[1754089487989,5.9631,3455.5,3454.9,2.89443554]
[1754089488294,5.9631,3455.5,3454.9,2.89438879]
[1754089488655,0.9941,3455.5,3454.7,2.89458017]
[1754089488859,0.90827919,3455.7,3454.7,0.28945802]
[1754089489172,4.968,3455.6,3455.2,2.89411957]
[1754089489374,0.9941,3455.5,3454.8,2.8945211]
[1754089489579,3.88810248,3455.5,3454.8,2.8945211]
[1754089490091,4.968,3455.6,3454.9,0.57892115]
[1754089490241,4.968,3455.6,3454.9,0.5221]
[1754089490447,4.968,3455.6,3454.9,3.5221]
[1754089490654,0.90827919,3455.7,3454.9,0.5221]
[1754089490655,5.87627919,3455.7,3454.9,0.5221]
[1754089490855,0.55,3455.6,3455.1,2.89422155]
[1754089491086,0.55,3455.6,3454.9,0.5221]
[1754089491270,2.89399598,3455.5,3454.4,0.5221]
[1754089491462,3.44388257,3455.6,3454.9,2.89437884]
[1754089491789,5.87527919,3455.7,3454.9,0.5221]
[1754089491972,5.87527919,3455.7,3454.7,3.4606]
[1754089491973,0.90827919,3455.7,3455.6,2.89385345]
[1754089492280,0.90827919,3455.7,3455.6,3.41595345]
[1754089492583,0.90827919,3455.7,3455.6,7.50754356]
[1754089493205,0.001,3456.0,3455.9,2.89360224]
[1754089493377,0.001,3456.0,3455.9,5.89360224]
[1754089493703,0.001,3456.0,3455.9,7.02110224]
[1754089494504,0.001,3456.0,3455.9,6.56050224]
[1754089494802,0.001,3456.0,3455.9,6.03840224]
[1754089495203,0.001,3456.0,3455.9,6.93161781]
[1754089495367,0.001,3456.0,3455.9,7.45371781]
[1754089496082,0.001,3456.0,3455.9,6.93161781]
[1754089496278,0.9951,3456.0,3455.6,2.89385259]
[1754089496478,0.001,3456.0,3455.2,3.0]
[1754089496709,0.001,3456.0,3455.6,2.89378774]
[1754089497001,2.89459536,3456.0,3455.2,3.0]
[1754089497166,2.89459536,3456.0,3455.3,2.89405223]
[1754089497368,0.001,3456.0,3455.6,2.89379968]
[1754089497566,0.001,3456.0,3455.1,0.5221]
[1754089497567,0.001,3456.0,3455.3,3.0]
[1754089497810,0.001,3456.0,3455.2,2.89411382]
[1754089497811,0.551,3456.0,3455.2,2.89413861]
[1754089498015,2.89360224,3455.9,3455.3,2.89408989]
[1754089498324,0.551,3456.0,3455.0,3.0]
[1754089498481,2.89368855,3455.8,3455.2,2.89413007]
[1754089498815,0.4438,3455.9,3454.7,6.356407]
[1754089498980,0.5503,3455.7,3454.8,2.89447226]
[1754089499212,2.89387082,3455.6,3455.0,2.89430556]
[1754089499501,2.89385345,3455.6,3454.7,3.76388961]
[1754089499670,0.55,3455.5,3454.7,0.869307]
[1754089499870,0.5503,3455.7,3454.7,0.869307]
[1754089500070,0.001,3456.0,3454.8,3.90613185]
[1754089500291,0.001,3456.0,3454.9,0.47754389]
[1754089500478,0.001,3456.0,3455.5,2.89388809]
[1754089500680,0.001,3456.4,3456.0,3.0]
[1754089500879,0.90590659,3458.1,3456.1,0.02893434]
[1754089501111,0.90590659,3458.1,3456.5,2.89309995]
[1754089501318,4.963,3458.5,3458.2,2.89160979]
[1754089501471,4.963,3458.5,3456.9,3.0]
[1754089501472,4.963,3458.5,3458.1,2.89170231]
[1754089501672,0.5503,3459.0,3457.4,3.0]
[1754089501673,0.5503,3459.0,3458.2,0.5221]
[1754089501974,2.89044176,3459.7,3458.3,2.89159413]
[1754089502309,0.9941,3460.2,3458.4,0.9827]
[1754089502510,5.9571,3460.2,3458.4,1.67301966]
[1754089502679,5.9571,3460.2,3458.5,0.5221]
[1754089503008,4.963,3460.1,3458.5,0.5221]
[1754089503207,2.89050602,3459.7,3458.6,2.89133586]
[1754089503433,0.29266332,3459.7,3458.6,3.0]
[1754089503708,1.03023134,3459.6,3458.0,0.5221]
[1754089503893,0.55,3459.0,3458.0,0.5221]
[1754089504099,3.0,3459.9,3458.0,0.5221]
[1754089504100,0.9941,3460.0,3459.2,2.89080565]
[1754089504294,0.9941,3460.0,3458.7,0.5221]
[1754089504500,2.8904931,3459.7,3457.8,0.5221]
[1754089504686,1.03023134,3459.6,3457.8,0.5221]
[1754089504890,0.55,3459.3,3458.0,2.89184499]
[1754089505085,0.55,3459.1,3458.7,2.8911892]
[1754089505492,0.38842482,3459.9,3457.9,2.89189704]
[1754089505493,0.9941,3459.6,3458.5,0.02891426]
[1754089505687,4.961,3459.8,3459.4,2.89061157]
[1754089505886,4.961,3459.8,3459.6,2.8904816]
[1754089506088,4.961,3459.8,3458.9,2.89109254]
[1754089506303,0.1448,3460.0,3459.6,2.89050006]
[1754089506516,1.60409,3459.9,3459.5,0.1448]
[1754089506812,0.1448,3460.0,3459.7,2.89035311]
[1754089506978,0.55,3459.9,3459.7,2.89035311]
[1754089507380,0.55,3459.9,3459.5,3.03537881]
[1754089507381,0.55,3459.7,3459.5,0.1448]
[1754089507617,4.47073891,3459.6,3459.5,0.1448]
[1754089507916,0.55,3459.1,3458.2,2.89167006]
[1754089508218,0.6948,3458.9,3458.4,0.1448]
[1754089508518,0.6948,3458.9,3458.4,3.03626505]
[1754089508684,0.55,3459.2,3458.1,2.89176137]
[1754089508885,0.55,3459.2,3458.6,0.1448]
[1754089508886,0.55,3459.0,3458.6,0.1448]
[1754089509119,1.5441,3459.0,3458.6,0.1448]
[1754089509829,0.001,3459.4,3458.9,0.1448]
[1754089510006,0.001,3459.4,3459.3,2.89075824]
[1754089510684,0.001,3459.4,3459.3,6.87345824]
[1754089510881,4.959,3460.7,3459.4,3.0]
[1754089511095,4.959,3460.7,3459.3,5.25110779]
[1754089511096,4.959,3460.7,3459.5,0.5221]
[1754089511297,4.959,3460.7,3460.1,2.89002584]
[1754089511498,0.88426126,3460.6,3459.5,3.412646]
[1754089511792,0.88426126,3460.6,3459.5,3.41269047]
[1754089511991,0.55,3460.4,3459.7,2.89037026]
[1754089512192,3.43983967,3460.4,3459.8,2.89033823]
[1754089512400,0.9941,3460.3,3458.5,0.5221]
[1754089512608,0.55,3459.8,3458.5,0.5221]
[1754089512914,5.508,3460.1,3458.6,0.48951343]
[1754089513094,4.958,3460.6,3459.0,3.0]
[1754089513299,2.88992283,3460.3,3458.5,0.868298]
[1754089513510,3.55,3460.1,3458.5,0.868298]
[1754089513785,3.44069155,3459.4,3458.7,2.89124369]
[1754089514019,1.1003,3459.4,3458.7,2.891253]
[1754089514230,1.1003,3459.4,3458.6,2.89131202]
[1754089514439,0.55,3459.5,3458.9,2.89109254]
[1754089514722,0.001,3461.1,3458.9,3.02891092]
[1754089514882,2.89007709,3460.2,3459.0,0.5413]
[1754089515089,2.89008988,3460.1,3459.3,2.89075628]
[1754089515308,3.67479887,3460.1,3459.3,2.89075628]
[1754089515524,3.67480124,3460.1,3459.4,2.89059335]
[1754089515726,2.89017901,3460.0,3459.4,2.89059335]
[1754089516031,0.78470899,3460.1,3459.3,2.89073027]
[1754089516195,2.89022682,3460.0,3459.4,2.89067278]
[1754089516591,2.8903665,3459.8,3459.0,3.43230698]
[1754089516796,2.89024796,3460.0,3459.0,0.5413]
[1754089517096,2.89050966,3459.6,3459.0,2.89094425]
[1754089517332,2.89064184,3459.5,3458.9,3.0]
[1754089517631,0.55,3459.3,3458.4,2.89143722]
[1754089517929,2.89091411,3459.2,3458.5,2.89137507]
[1754089518145,0.55,3459.3,3458.2,3.0]
[1754089518348,2.89099825,3459.1,3458.4,2.89145564]
[1754089518566,0.5152,3459.4,3458.0,0.5413]
[1754089518840,0.5152,3459.9,3458.6,2.89134331]
[1754089519029,7.84544039,3459.7,3458.7,1.01071259]
[1754089519344,7.84544039,3459.7,3459.0,2.89095039]
[1754089519545,7.84544039,3459.7,3459.1,2.89091299]
[1754089519751,2.89136536,3458.6,3457.3,0.5413]
[1754089519915,0.55,3458.5,3457.8,2.89195145]
[1754089520111,2.89160103,3458.3,3458.1,0.1448]
[1754089520312,2.89160103,3458.3,3456.7,8.38920694]
[1754089520313,0.55,3458.2,3456.7,8.38920694]
[1754089520647,0.55,3458.0,3456.2,2.89328999]
[1754089520865,5.9264,3457.9,3456.3,0.5413]
[1754089521010,0.55,3458.1,3457.6,2.89211716]
[1754089521216,2.89203185,3457.8,3457.1,2.89252045]
[1754089521415,2.89203185,3457.8,3457.2,2.89250456]
[1754089521647,2.89195297,3457.9,3457.2,2.89250456]
[1754089521947,0.55,3457.6,3456.9,2.89270502]
[1754089522156,2.89240605,3457.4,3456.5,2.89309213]
[1754089522448,2.89240605,3457.4,3456.5,2.89304322]
[1754089522449,2.89252222,3457.2,3456.5,2.89304322]
[1754089522761,2.89268705,3457.0,3456.4,2.89317661]
[1754089523046,3.95772894,3457.2,3456.3,3.0]
[1754089523248,1.0652,3457.2,3456.1,3.0]
[1754089523554,0.44131773,3458.0,3456.1,3.0]
[1754089523555,0.55,3458.1,3457.5,2.89218089]
[1754089523854,4.955,3458.7,3457.6,0.57022179]
[1754089524017,4.955,3458.7,3458.1,2.89169543]
[1754089524212,2.89167038,3458.3,3457.6,0.5413]
[1754089524526,3.55,3458.5,3457.3,2.8924176]
[1754089524724,3.0,3458.7,3457.0,2.89268151]
[1754089524725,3.44155378,3458.4,3457.0,2.89268151]
[1754089524930,4.955,3458.3,3457.1,0.57022597]
[1754089525131,0.8999045,3459.6,3457.8,3.0]
[1754089525376,0.8999045,3459.6,3458.4,3.0]
[1754089525662,0.8999045,3459.6,3458.7,3.0]
[1754089525873,1.8713045,3459.6,3458.0,5.4973]
[1754089526161,1.8713045,3459.6,3459.0,2.89094259]
[1754089526330,1.8713045,3459.6,3458.8,2.89109916]
[1754089526514,1.8713045,3459.6,3458.1,3.5413]
[1754089526715,3.44064727,3459.5,3458.3,3.0]
[1754089526917,1.23273045,3459.5,3458.9,2.89108539]
[1754089527125,1.23273045,3459.5,3458.3,5.89155385]
[1754089527419,0.55,3459.5,3458.8,2.89111051]
[1754089527619,3.44065899,3459.5,3458.8,2.89111051]
[1754089527948,0.55,3459.5,3459.1,2.89086925]
[1754089528153,1.3561045,3459.6,3459.2,2.89082751]
[1754089528351,0.8999045,3459.6,3458.5,0.5413]
[1754089528518,0.9714,3459.5,3458.5,0.5413]
[1754089528719,0.9714,3459.5,3459.1,2.89090627]
[1754089529034,0.8999045,3459.6,3458.6,0.02891343]
[1754089529364,0.8999045,3459.6,3459.5,2.89059112]
[1754089530052,0.55,3459.5,3458.2,0.5413]
[1754089530266,0.6948,3459.5,3458.9,2.89102428]
[1754089530429,0.6948,3459.5,3458.8,0.1448]
[1754089530430,0.1448,3459.3,3458.8,0.1448]
[1754089530640,0.66,3459.3,3458.8,0.1448]
[1754089530844,0.66,3459.3,3458.9,2.89107667]
[1754089531041,0.66,3459.3,3459.0,2.89100624]
[1754089531380,0.66,3459.3,3458.2,0.5413]
[1754089531381,0.55,3459.5,3458.4,0.4405]
[1754089531558,0.47966396,3459.4,3458.8,2.8911318]
[1754089531868,0.55,3459.5,3459.2,0.1448]
[1754089532053,0.55,3459.3,3458.2,3.5413]
[1754089532228,0.6948,3459.3,3459.0,2.89095583]
[1754089532431,1.151,3459.3,3458.8,3.03594265]
[1754089532663,0.5152,3459.2,3458.9,2.89108701]
[1754089533074,0.5152,3459.2,3458.8,0.1448]
[1754089533277,0.5152,3459.2,3458.8,3.03596138]
[1754089533427,0.5152,3459.2,3458.8,0.1448]
[1754089533765,1.151,3459.3,3458.9,2.89102953]
[1754089534146,0.1448,3459.3,3458.8,0.1468]
[1754089534327,0.8999045,3459.6,3459.5,2.89059112]
[1754089534754,0.8999045,3459.6,3459.5,3.03539112]
[1754089535033,0.8999045,3459.6,3459.3,0.1448]
[1754089535252,1.5214,3459.5,3459.3,0.1448]
[1754089535453,1.92281045,3459.5,3459.1,0.1448]
[1754089535657,1.92281045,3459.5,3459.2,2.89081677]
[1754089535658,0.6948,3459.5,3459.2,2.89081677]
[1754089536054,0.8999045,3459.6,3459.5,2.89059112]
[1754089536261,0.8999045,3459.6,3459.4,3.03544624]
[1754089536464,0.8999045,3459.6,3459.5,2.89059112]
[1754089536666,0.8999045,3459.6,3459.4,3.03543848]
[1754089537069,0.8999045,3459.6,3459.5,3.43189112]
[1754089538039,0.8999045,3459.6,3459.5,4.8522533]
[1754089539476,0.8999045,3459.6,3459.5,7.8522533]
[1754089539641,0.001,3459.9,3459.8,2.89034048]
[1754089540174,0.001,3459.9,3459.8,4.04584388]
[1754089540379,0.001,3459.9,3459.8,5.42651674]
[1754089540698,0.001,3459.9,3459.8,0.1737034]
[1754089540843,0.001,3459.9,3459.8,2.89034048]
[1754089541176,0.9724,3459.9,3459.3,2.89071436]
[1754089541359,0.9724,3459.9,3459.1,2.89089228]
[1754089541569,0.9724,3459.9,3458.9,3.0]
[1754089541751,0.001,3459.9,3459.4,2.89062102]
[1754089542072,0.001,3459.9,3459.0,0.84953]
[1754089542073,0.001,3459.9,3459.2,2.89084181]
[1754089542281,0.001,3459.9,3459.2,2.91975022]
[1754089542455,0.001,3459.9,3459.8,2.89034048]
[1754089544314,0.001,3459.9,3459.8,4.45310815]
[1754089544450,0.001,3459.9,3459.7,2.89036792]
[1754089544653,0.001,3459.9,3459.5,2.89057974]
[1754089544874,0.001,3459.9,3459.7,2.89039689]
[1754089545069,0.001,3459.9,3459.8,2.89034048]
[1754089545488,0.001,3459.9,3459.8,3.44024048]
[1754089545684,0.001,3459.9,3459.8,4.14642762]
[1754089546571,0.001,3459.9,3459.8,4.55972422]
[1754089546878,0.001,3459.9,3459.8,4.58862762]
[1754089547066,0.001,3459.9,3459.8,4.55972422]
[1754089547977,0.001,3459.9,3459.8,4.11752422]
[1754089548865,0.001,3459.9,3459.8,4.58862762]
[1754089549249,0.001,3459.9,3459.8,7.55972422]
[1754089550670,0.001,3460.1,3459.8,7.70452422]
[1754089550877,1e-08,3460.1,3460.0,5.89017341]
[1754089551072,1e-08,3460.1,3460.0,10.98497341]
[1754089551399,1e-08,3460.1,3460.0,11.97707341]
[1754089552472,1e-08,3460.1,3460.0,12.38227341]
[1754089552788,1e-08,3460.1,3460.0,12.52707341]
[1754089553111,1e-08,3461.1,3461.0,2.88933834]
[1754089553315,1e-08,3461.1,3461.0,10.98313834]
[1754089553512,1e-08,3461.5,3461.4,2.88900444]
[1754089553690,1e-08,3461.5,3461.4,8.71542448]
[1754089553874,1e-08,3461.5,3461.4,8.83133444]
[1754089554078,1e-08,3461.5,3461.4,9.82343444]
[1754089554275,1e-08,3461.5,3461.4,12.82343444]
[1754089555286,0.001,3462.2,3461.4,13.37343444]
[1754089555484,0.001,3462.2,3462.1,5.88842032]
[1754089555485,1e-08,3462.2,3462.1,5.88842032]
[1754089555694,1e-08,3462.2,3462.1,10.83642032]
[1754089555912,1e-08,3462.2,3462.1,11.82852032]
[1754089556118,1e-08,3462.2,3462.1,13.44502407]
[1754089556489,1e-08,3462.2,3462.1,12.45192407]
[1754089557293,1e-08,3462.2,3462.1,3.1448]